Workbook

Sheet Inicio MC
A24: Descargue la versión Kindle
K33: Miguel Cervantes Jiménez

Sheet SustPerf MC (hidden)
A1: MINIMIZACIÓN DE COSTOS
A3: SUSTITUTOS PERFECTOS
B5: GASTO
B6: c | C6: w1 | D6: q1 | E6: w2 | F6: q2
B7: =MIN(C7,E7)*B20 -> 12.0 | C7: 2.0 | D7: 10.0 | E7: 5.0 | F7: =B12 -> (1.6)
B8: Inserte los datos correspondientes
B10: PARÁMETROS DEL GASTO
B11: q2 | C11: b0 | D11: b1 | E11: q1
B12: =C12+(D12*E12) -> (1.6) | C12: =B7/E7 -> 2.4 | D12: =C7/E7*-1 -> (0.4) | E12: =D7 -> 10.0
B14: Máxima cantidad de q1 | D14: =B7/C7 -> 6.0
B15: Máxima cantidad de q2 | D15: =B7/E7 -> 2.4
B16: Precio relativo (<0) | D16: =(C7/E7)*(-1) -> (0.4)
B18: PARÁMETROS DE LA ISOCUANTA
B19: y | C19: q1* | D19: q2*
B20: 6.0 | C20: ='Oculto MC'!AZ30 -> 6.0 | D20: ='Oculto MC'!AZ31 -> 0
B23: Títulos
B24: Resultados
B25: Insertar datos
B26: Valor de equilibrio

Sheet Leontief MC (hidden)
A1: MINIMIZACIÓN DE COSTOS
A3: COMPLEMENTOS PERFECTOS
B5: GASTO
B6: c | C6: w1 | D6: q1 | E6: w2 | F6: q2
B7: =(C7+E7)*B20 -> 72.0 | C7: 0.9 | D7: =C20 -> 40.0 | E7: 0.9 | F7: =B12 -> 40.0
B8: Inserte los datos correspondientes
B10: PARÁMETROS DEL GASTO
B11: q2 | C11: b0 | D11: b1 | E11: q1
B12: =C12+(D12*E12) -> 40.0 | C12: =B7/E7 -> 80.0 | D12: =C7/E7*-1 -> -1.0 | E12: =D7 -> 40.0
B14: Máxima cantidad de q1 | D14: =B7/C7 -> 80.0
B15: Máxima cantidad de q2 | D15: =B7/E7 -> 80.0
B16: Precio relativo (<0) | D16: =(C7/E7)*(-1) -> -1.0
B18: PARÁMETROS DE LA ISOCUANTA
B19: y | C19: q1* | D19: q2*
B20: 40.0 | C20: ='Oculto MC'!AR28 -> 40.0 | D20: ='Oculto MC'!AR29 -> 40.0
B23: Títulos
B24: Resultados
B25: Insertar datos
B26: Valor de equilibrio

Sheet CES MC (hidden)
A1: MINIMIZACIÓN DE COSTOS
A3: FUNCIÓN DE PRODUCCIÓN "POLINOMIO"
B4: GASTO
B6: C | C6: w1 | D6: q1 | E6: w2 | F6: q2
B7: =(C7*D7)+(E7*F7) -> 127.5 | C7: 10.0 | D7: ='Oculto MC'!P28 -> 5.9 | E7: 15.0 | F7: ='Oculto MC'!P29 -> 4.6
B8: Inserte los datos correspondientes
B10: PARÁMETROS DEL ISOCOSTO
B11: q2 | C11: b0 | D11: b1 | E11: q1
B12: =C12+(D12*E12) -> 4.6 | C12: =B7/E7 -> 8.5 | D12: =C7/E7*-1 -> (0.7) | E12: =D7 -> 5.9
B14: Máxima cantidad de Q1 | D14: =B7/C7 -> 12.7
B15: Máxima cantidad de Q2 | D15: =B7/E7 -> 8.5
B16: Precio relativo (<0) | D16: =(C7/E7)*(-1) -> (0.7)
B18: PARÁMETROS DE LA ISOCUANTA (FUNCIÓN REGULAR)
B19: y | C19: q1* | D19: q2* | E19: a | F19: b
B20: 10.0 | C20: ='Oculto MC'!V13 -> 5.9 | D20: ='Oculto MC'!W13 -> 4.6 | E20: 2.0 | F20: 2.0
B23: Títulos
B24: Resultados
B25: Insertar datos
B26: Cantidad de equilibrio

Sheet Oculto MC (hidden)
A1: COBB-DOUGLAS | C1: Isocosto | J1: Isocuanta | M1: REGULARES | O1: Isocosto | V1: Isocuanta | Y1: NEUTRALES | AB1: Recta Presupuestaria | AD1: Curva de Indiferencia | AG1: MALES | AJ1: Recta Presupuestaria | AL1: Curva de Indiferencia | AO1: COMPLEMENTARIOS PERFECTOS | AR1: Isocosto | AT1: Isocuanta | AX1: SUSTITUTOS PERFECTOS | BA1: Isocosto | BC1: Isocuanta
A2: Unidades | B2: ponderador | C2: x1 | D2: x2 | E2: x1lin | G2: x2lin | I2: Cota | J2: x1 | K2: x2 | M2: Unidades | N2: ponderador | O2: x1 | P2: x2 | Q2: x1lin | S2: x2lin | U2: Cota | V2: x1 | W2: x2 | Y2: Unidades | Z2: ponderador | AB2: x1 | AC2: x2 | AD2: x1lin | AG2: Unidades | AH2: ponderador | AJ2: x1 | AK2: x2 | AL2: x1lin | AO2: Unidades | AP2: ponderador | AR2: x1 | AS2: x2 | AT2: vertice | AU2: x1line | AV2: x2line | AX2: Unidades | AY2: ponderador | BA2: x1 | BB2: x2 | BC2: x1lin | BD2: sip1>p2 | BF2: graf | BG2: filtro
A3: 1 | B3: 0 | C3: =B3/2*$C$39 -> 0 | D3: =$A$32/$D$32-($B$32/$D$32*C3) -> 4.16 | E3: =$E$27 -> 1.386722549 | F3: =$F$27*(B3/2) -> 0 | G3: =$E$27*(B3/2) -> 0 | H3: =$F$27 -> 2.773445097 | M3: 1 | N3: 0 | O3: =$P$25/$P$26*N3 -> 0 | P3: =($P$25/$P$27)-(($P$26/$P$27)*O3) -> 8.50 | Q3: =$V$13 -> 5.87 | R3: =T3*N3 -> 0 | S3: =Q3*N3 -> 0 | T3: =$W$13 -> 4.58 | Y3: 1 | Z3: 0 | AA3: 1.00 | AB3: =(#REF!/#REF!)*Z3 ->  | AC3: =(#REF!/#REF!)*AA3 ->  | AD3: =MAX($AB$3:$AB$23) ->  | AE3: =$AC$3*Z3 ->  | AG3: 1 | AH3: 0 | AI3: 1.00 | AJ3: =(#REF!/#REF!)*'Oculto MC'!AH3 ->  | AK3: =AI3*(#REF!/#REF!) ->  | AL3: =$AJ$23+((#REF!/#REF!)*'Oculto MC'!AJ3) ->  | AM3: 0 | AO3: 1 | AP3: 0 | AQ3: 1.00 | AR3: =$AR$25/$AR$26*AP3 -> 0 | AS3: =$AR$25/$AR$27*AQ3 -> 80.00 | AT3: =$AR$28 -> 40.00 | AU3: =AT3+(($AR$23-AT3)*AP3) -> 40.00 | AV3: =AT3+(($AS$3-AT3)*AP3) -> 40.00 | AX3: 1 | AY3: 0 | AZ3: 1.00 | BA3: =('SustPerf MC'!$B$7/'SustPerf MC'!$C$7)*'Oculto MC'!AY3 -> 0 | BB3: =('SustPerf MC'!$B$7/'SustPerf MC'!$E$7)*'Oculto MC'!AZ3 -> 2.40 | BC3: =$AZ$25*AY3 -> 0 | BD3: =(($AZ$27)-(BC3)) -> 6.00 | BE3: =IF($AZ$28>=$AZ$29,($BD$3*AY3),BC3) -> 0 | BF3: =IF($AZ$28>=$AZ$29,($BD$3*AZ3),BD3) -> 6 | BG3: =$BD$3*AZ3 -> 6
A4: 2 | B4: 0.10 | C4: =B4/2*$C$39 -> 0.21 | D4: =$A$32/$D$32-($B$32/$D$32*C4) -> 3.95 | E4: =$E$27 -> 1.386722549 | F4: =$F$27*(B4/2) -> 0.14 | G4: =$E$27*(B4/2) -> 0.07 | H4: =$F$27 -> 2.773445097 | I4: 0.28 | J4: =$E$27*I4 -> 0.39 | K4: =($A$45/($B$45*(J4^($E$26))))^(1/$F$26) -> 5.24 | M4: 2 | N4: 0.05 | O4: =$P$25/$P$26*N4 -> 0.64 | P4: =($P$25/$P$27)-(($P$26/$P$27)*O4) -> 8.07 | Q4: =$V$13 -> 5.87 | R4: =T4*N4 -> 0.23 | S4: =Q4*N4 -> 0.29 | T4: =$W$13 -> 4.58 | U4: =$U$25 -> 0.1 | V4: =$V$13*U4 -> 0.59 | W4: =($Q$26+($Q$30*V4)-($Q$28*$Q$30))/(V4-$Q$28) -> (5.08) | Y4: 2 | Z4: 0.05 | AA4: 0.95 | AB4: =(#REF!/#REF!)*Z4 ->  | AC4: =(#REF!/#REF!)*AA4 ->  | AD4: =MAX($AB$3:$AB$23) ->  | AE4: =$AC$3*Z4 ->  | AG4: 2 | AH4: 0.05 | AI4: 0.95 | AJ4: =(#REF!/#REF!)*'Oculto MC'!AH4 ->  | AK4: =AI4*(#REF!/#REF!) ->  | AL4: =$AJ$23+((#REF!/#REF!)*'Oculto MC'!AJ4) ->  | AM4: 1.00 | AO4: 2 | AP4: 0.05 | AQ4: 0.95 | AR4: =$AR$25/$AR$26*AP4 -> 4.00 | AS4: =$AR$25/$AR$27*AQ4 -> 76.00 | AT4: =$AR$28 -> 40.00 | AU4: =AT4+(($AR$23-AT4)*AP4) -> 42.00 | AV4: =AT4+(($AS$3-AT4)*AP4) -> 42.00 | AX4: 2 | AY4: 0.05 | AZ4: 0.95 | BA4: =('SustPerf MC'!$B$7/'SustPerf MC'!$C$7)*'Oculto MC'!AY4 -> 0.30 | BB4: =('SustPerf MC'!$B$7/'SustPerf MC'!$E$7)*'Oculto MC'!AZ4 -> 2.28 | BC4: =$AZ$25*AY4 -> 0.30 | BD4: =(($AZ$27)-(BC4)) -> 5.70 | BE4: 0.30 | BF4: 5.7 | BG4: =$BD$3*AZ4 -> 5.7
A5: 3 | B5: 0.20 | C5: 0.42 | D5: 3.74 | E5: 1.386722549 | F5: 0.28 | G5: 0.14 | H5: 2.773445097 | I5: 0.36 | J5: =$E$27*I5 -> 0.50 | K5: 4.62 | M5: 3 | N5: 0.10 | O5: 1.27 | P5: 7.65 | Q5: 5.87 | R5: 0.46 | S5: 0.59 | T5: 4.58 | U5: =U4+$U$25 -> 0.2 | V5: 1.17 | W5: (10.12) | Y5: 3 | Z5: 0.10 | AA5: 0.90 | AB5: =(#REF!/#REF!)*Z5 ->  | AC5: =(#REF!/#REF!)*AA5 ->  | AG5: 3 | AH5: 0.10 | AI5: 0.90 | AJ5: =(#REF!/#REF!)*'Oculto MC'!AH5 ->  | AK5: =AI5*(#REF!/#REF!) ->  | AL5: =$AJ$23+((#REF!/#REF!)*'Oculto MC'!AJ5) ->  | AM5: 2.00 | AO5: 3 | AP5: 0.10 | AQ5: 0.90 | AR5: 8.00 | AS5: 72.00 | AT5: 40.00 | AU5: 44.00 | AV5: 44.00 | AX5: 3 | AY5: 0.10 | AZ5: 0.90 | BA5: =('SustPerf MC'!$B$7/'SustPerf MC'!$C$7)*'Oculto MC'!AY5 -> 0.60 | BB5: =('SustPerf MC'!$B$7/'SustPerf MC'!$E$7)*'Oculto MC'!AZ5 -> 2.16 | BC5: 0.60 | BD5: 5.40 | BE5: 0.60 | BF5: 5.4 | BG5: 5.4
A6: 4 | B6: 0.30 | C6: 0.62 | D6: 3.54 | E6: 1.386722549 | F6: 0.42 | G6: 0.21 | H6: 2.773445097 | I6: 0.44 | J6: 0.61 | K6: 4.18 | M6: 4 | N6: 0.15 | O6: 1.91 | P6: 7.22 | Q6: 5.87 | R6: 0.69 | S6: 0.88 | T6: 4.58 | U6: =U5+$U$25 -> 0.3 | V6: 1.76 | W6: (40.00) | Y6: 4 | Z6: 0.15 | AA6: 0.85 | AB6: =(#REF!/#REF!)*Z6 ->  | AC6: =(#REF!/#REF!)*AA6 ->  | AG6: 4 | AH6: 0.15 | AI6: 0.85 | AJ6: =(#REF!/#REF!)*'Oculto MC'!AH6 ->  | AK6: =AI6*(#REF!/#REF!) ->  | AL6: =$AJ$23+((#REF!/#REF!)*'Oculto MC'!AJ6) ->  | AM6: 3.00 | AO6: 4 | AP6: 0.15 | AQ6: 0.85 | AR6: 12.00 | AS6: 68.00 | AT6: 40.00 | AU6: 46.00 | AV6: 46.00 | AX6: 4 | AY6: 0.15 | AZ6: 0.85 | BA6: =('SustPerf MC'!$B$7/'SustPerf MC'!$C$7)*'Oculto MC'!AY6 -> 0.90 | BB6: =('SustPerf MC'!$B$7/'SustPerf MC'!$E$7)*'Oculto MC'!AZ6 -> 2.04 | BC6: 0.90 | BD6: 5.10 | BE6: 0.90 | BF6: 5.1 | BG6: 5.1
A7: 5 | B7: 0.40 | C7: 0.83 | D7: 3.33 | E7: 1.386722549 | F7: 0.55 | G7: 0.28 | H7: 2.773445097 | I7: 0.52 | J7: 0.72 | K7: 3.85 | M7: 5 | N7: 0.20 | O7: 2.55 | P7: 6.80 | Q7: 5.87 | R7: 0.92 | S7: 1.17 | T7: 4.58 | U7: 0.4 | V7: 2.35 | W7: 30.64 | Y7: 5 | Z7: 0.20 | AA7: 0.80 | AB7: =(#REF!/#REF!)*Z7 ->  | AC7: =(#REF!/#REF!)*AA7 ->  | AG7: 5 | AH7: 0.20 | AI7: 0.80 | AJ7: =(#REF!/#REF!)*'Oculto MC'!AH7 ->  | AK7: =AI7*(#REF!/#REF!) ->  | AL7: =$AJ$23+((#REF!/#REF!)*'Oculto MC'!AJ7) ->  | AM7: 4.00 | AO7: 5 | AP7: 0.20 | AQ7: 0.80 | AR7: 16.00 | AS7: 64.00 | AT7: 40.00 | AU7: 48.00 | AV7: 48.00 | AX7: 5 | AY7: 0.20 | AZ7: 0.80 | BA7: =('SustPerf MC'!$B$7/'SustPerf MC'!$C$7)*'Oculto MC'!AY7 -> 1.20 | BB7: =('SustPerf MC'!$B$7/'SustPerf MC'!$E$7)*'Oculto MC'!AZ7 -> 1.92 | BC7: 1.20 | BD7: 4.80 | BE7: 1.20 | BF7: 4.8 | BG7: 4.8
A8: 6 | B8: 0.50 | C8: 1.04 | D8: 3.12 | E8: 1.386722549 | F8: 0.69 | G8: 0.35 | H8: 2.773445097 | I8: 0.6 | J8: 0.83 | K8: 3.58 | M8: 6 | N8: 0.25 | O8: 3.19 | P8: 6.37 | Q8: 5.87 | R8: 1.15 | S8: 1.47 | T8: 4.58 | U8: 0.5 | V8: 2.94 | W8: 12.68 | Y8: 6 | Z8: 0.25 | AA8: 0.75 | AB8: =(#REF!/#REF!)*Z8 ->  | AC8: =(#REF!/#REF!)*AA8 ->  | AG8: 6 | AH8: 0.25 | AI8: 0.75 | AJ8: =(#REF!/#REF!)*'Oculto MC'!AH8 ->  | AK8: =AI8*(#REF!/#REF!) ->  | AL8: =$AJ$23+((#REF!/#REF!)*'Oculto MC'!AJ8) ->  | AM8: 5.00 | AO8: 6 | AP8: 0.25 | AQ8: 0.75 | AR8: 20.00 | AS8: 60.00 | AT8: 40.00 | AU8: 50.00 | AV8: 50.00 | AX8: 6 | AY8: 0.25 | AZ8: 0.75 | BA8: =('SustPerf MC'!$B$7/'SustPerf MC'!$C$7)*'Oculto MC'!AY8 -> 1.50 | BB8: =('SustPerf MC'!$B$7/'SustPerf MC'!$E$7)*'Oculto MC'!AZ8 -> 1.80 | BC8: 1.50 | BD8: 4.50 | BE8: 1.50 | BF8: 4.5 | BG8: 4.5
A9: 7 | B9: 0.60 | C9: 1.25 | D9: 2.91 | E9: 1.386722549 | F9: 0.83 | G9: 0.42 | H9: 2.773445097 | I9: 0.68 | J9: 0.94 | K9: 3.36 | M9: 7 | N9: 0.30 | O9: 3.82 | P9: 5.95 | Q9: 5.87 | R9: 1.37 | S9: 1.76 | T9: 4.58 | U9: 0.6 | V9: 3.52 | W9: 8.56 | Y9: 7 | Z9: 0.30 | AA9: 0.70 | AB9: =(#REF!/#REF!)*Z9 ->  | AC9: =(#REF!/#REF!)*AA9 ->  | AG9: 7 | AH9: 0.30 | AI9: 0.70 | AJ9: =(#REF!/#REF!)*'Oculto MC'!AH9 ->  | AK9: =AI9*(#REF!/#REF!) ->  | AL9: =$AJ$23+((#REF!/#REF!)*'Oculto MC'!AJ9) ->  | AM9: 6.00 | AO9: 7 | AP9: 0.30 | AQ9: 0.70 | AR9: 24.00 | AS9: 56.00 | AT9: 40.00 | AU9: 52.00 | AV9: 52.00 | AX9: 7 | AY9: 0.30 | AZ9: 0.70 | BA9: =('SustPerf MC'!$B$7/'SustPerf MC'!$C$7)*'Oculto MC'!AY9 -> 1.80 | BB9: =('SustPerf MC'!$B$7/'SustPerf MC'!$E$7)*'Oculto MC'!AZ9 -> 1.68 | BC9: 1.80 | BD9: 4.20 | BE9: 1.80 | BF9: 4.2 | BG9: 4.2
A10: 8 | B10: 0.70 | C10: 1.46 | D10: 2.70 | E10: 1.386722549 | F10: 0.97 | G10: 0.49 | H10: 2.773445097 | I10: 0.76 | J10: 1.05 | K10: 3.18 | M10: 8 | N10: 0.35 | O10: 4.46 | P10: 5.52 | Q10: 5.87 | R10: 1.60 | S10: 2.06 | T10: 4.58 | U10: 0.7 | V10: 4.11 | W10: 6.74 | Y10: 8 | Z10: 0.35 | AA10: 0.65 | AB10: =(#REF!/#REF!)*Z10 ->  | AC10: =(#REF!/#REF!)*AA10 ->  | AG10: 8 | AH10: 0.35 | AI10: 0.65 | AJ10: =(#REF!/#REF!)*'Oculto MC'!AH10 ->  | AK10: =AI10*(#REF!/#REF!) ->  | AL10: =$AJ$23+((#REF!/#REF!)*'Oculto MC'!AJ10) ->  | AM10: 7.00 | AO10: 8 | AP10: 0.35 | AQ10: 0.65 | AR10: 28.00 | AS10: 52.00 | AT10: 40.00 | AU10: 54.00 | AV10: 54.00 | AX10: 8 | AY10: 0.35 | AZ10: 0.65 | BA10: =('SustPerf MC'!$B$7/'SustPerf MC'!$C$7)*'Oculto MC'!AY10 -> 2.10 | BB10: =('SustPerf MC'!$B$7/'SustPerf MC'!$E$7)*'Oculto MC'!AZ10 -> 1.56 | BC10: 2.10 | BD10: 3.90 | BE10: 2.10 | BF10: 3.9 | BG10: 3.9
A11: 9 | B11: 0.80 | C11: 1.66 | D11: 2.50 | E11: 1.386722549 | F11: 1.11 | G11: 0.55 | H11: 2.773445097 | I11: 0.84 | J11: 1.16 | K11: 3.03 | M11: 9 | N11: 0.40 | O11: 5.10 | P11: 5.10 | Q11: 5.87 | R11: 1.83 | S11: 2.35 | T11: 4.58 | U11: 0.8 | V11: 4.70 | W11: 5.71 | Y11: 9 | Z11: 0.40 | AA11: 0.60 | AB11: =(#REF!/#REF!)*Z11 ->  | AC11: =(#REF!/#REF!)*AA11 ->  | AG11: 9 | AH11: 0.40 | AI11: 0.60 | AJ11: =(#REF!/#REF!)*'Oculto MC'!AH11 ->  | AK11: =AI11*(#REF!/#REF!) ->  | AL11: =$AJ$23+((#REF!/#REF!)*'Oculto MC'!AJ11) ->  | AM11: 8.00 | AO11: 9 | AP11: 0.40 | AQ11: 0.60 | AR11: 32.00 | AS11: 48.00 | AT11: 40.00 | AU11: 56.00 | AV11: 56.00 | AX11: 9 | AY11: 0.40 | AZ11: 0.60 | BA11: =('SustPerf MC'!$B$7/'SustPerf MC'!$C$7)*'Oculto MC'!AY11 -> 2.40 | BB11: =('SustPerf MC'!$B$7/'SustPerf MC'!$E$7)*'Oculto MC'!AZ11 -> 1.44 | BC11: 2.40 | BD11: 3.60 | BE11: 2.40 | BF11: 3.6 | BG11: 3.6
A12: 10 | B12: 0.90 | C12: 1.87 | D12: 2.29 | E12: 1.386722549 | F12: 1.25 | G12: 0.62 | H12: 2.773445097 | I12: 0.92 | J12: 1.28 | K12: 2.89 | M12: 10 | N12: 0.45 | O12: 5.74 | P12: 4.67 | Q12: 5.87 | R12: 2.06 | S12: 2.64 | T12: 4.58 | U12: 0.9 | V12: 5.29 | W12: 5.04 | Y12: 10 | Z12: 0.45 | AA12: 0.55 | AB12: =(#REF!/#REF!)*Z12 ->  | AC12: =(#REF!/#REF!)*AA12 ->  | AG12: 10 | AH12: 0.45 | AI12: 0.55 | AJ12: =(#REF!/#REF!)*'Oculto MC'!AH12 ->  | AK12: =AI12*(#REF!/#REF!) ->  | AL12: =$AJ$23+((#REF!/#REF!)*'Oculto MC'!AJ12) ->  | AM12: 9.00 | AO12: 10 | AP12: 0.45 | AQ12: 0.55 | AR12: 36.00 | AS12: 44.00 | AT12: 40.00 | AU12: 58.00 | AV12: 58.00 | AX12: 10 | AY12: 0.45 | AZ12: 0.55 | BA12: =('SustPerf MC'!$B$7/'SustPerf MC'!$C$7)*'Oculto MC'!AY12 -> 2.70 | BB12: =('SustPerf MC'!$B$7/'SustPerf MC'!$E$7)*'Oculto MC'!AZ12 -> 1.32 | BC12: 2.70 | BD12: 3.30 | BE12: 2.70 | BF12: 3.3 | BG12: 3.3
A13: 11 | B13: 1.00 | C13: 2.08 | D13: 2.08 | E13: 1.386722549 | F13: 1.39 | G13: 0.69 | H13: 2.773445097 | I13: 1 | J13: =$E$27*I13 -> 1.39 | K13: =($A$45/($B$45*(J13^($E$26))))^(1/$F$26) -> 2.77 | M13: 11 | N13: 0.50 | O13: 6.37 | P13: 4.25 | Q13: 5.87 | R13: 2.29 | S13: 2.94 | T13: 4.58 | U13: 1 | V13: =P28 -> 5.87 | W13: 4.58 | Y13: 11 | Z13: 0.50 | AA13: 0.50 | AB13: =(#REF!/#REF!)*Z13 ->  | AC13: =(#REF!/#REF!)*AA13 ->  | AG13: 11 | AH13: 0.50 | AI13: 0.50 | AJ13: =(#REF!/#REF!)*'Oculto MC'!AH13 ->  | AK13: =AI13*(#REF!/#REF!) ->  | AL13: =$AJ$23+((#REF!/#REF!)*'Oculto MC'!AJ13) ->  | AM13: 10.00 | AO13: 11 | AP13: 0.50 | AQ13: 0.50 | AR13: 40.00 | AS13: 40.00 | AT13: 40.00 | AU13: 60.00 | AV13: 60.00 | AX13: 11 | AY13: 0.50 | AZ13: 0.50 | BA13: =('SustPerf MC'!$B$7/'SustPerf MC'!$C$7)*'Oculto MC'!AY13 -> 3.00 | BB13: =('SustPerf MC'!$B$7/'SustPerf MC'!$E$7)*'Oculto MC'!AZ13 -> 1.20 | BC13: 3.00 | BD13: 3.00 | BE13: 3.00 | BF13: 3 | BG13: 3
A14: 12 | B14: 1.10 | C14: 2.29 | D14: 1.87 | E14: 1.386722549 | F14: 1.53 | G14: 0.76 | H14: 2.773445097 | I14: 1.08 | J14: =$E$27*I14 -> 1.50 | K14: =($A$45/($B$45*(J14^($E$26))))^(1/$F$26) -> 2.67 | M14: 12 | N14: 0.55 | O14: 7.01 | P14: 3.82 | Q14: 5.87 | R14: 2.52 | S14: 3.23 | T14: 4.58 | U14: =U13+$U$25 -> 1.1 | V14: =$V$13*U14 -> 6.46 | W14: =($Q$26+($Q$30*V14)-($Q$28*$Q$30))/(V14-$Q$28) -> 4.24 | Y14: 12 | Z14: 0.55 | AA14: 0.45 | AB14: =(#REF!/#REF!)*Z14 ->  | AC14: =(#REF!/#REF!)*AA14 ->  | AG14: 12 | AH14: 0.55 | AI14: 0.45 | AJ14: =(#REF!/#REF!)*'Oculto MC'!AH14 ->  | AK14: =AI14*(#REF!/#REF!) ->  | AL14: =$AJ$23+((#REF!/#REF!)*'Oculto MC'!AJ14) ->  | AM14: 11.00 | AO14: 12 | AP14: 0.55 | AQ14: 0.45 | AR14: 44.00 | AS14: 36.00 | AT14: 40.00 | AU14: 62.00 | AV14: 62.00 | AX14: 12 | AY14: 0.55 | AZ14: 0.45 | BA14: =('SustPerf MC'!$B$7/'SustPerf MC'!$C$7)*'Oculto MC'!AY14 -> 3.30 | BB14: =('SustPerf MC'!$B$7/'SustPerf MC'!$E$7)*'Oculto MC'!AZ14 -> 1.08 | BC14: 3.30 | BD14: 2.70 | BE14: 3.30 | BF14: 2.7 | BG14: 2.7
A15: 13 | B15: 1.20 | C15: 2.50 | D15: 1.66 | E15: 1.386722549 | F15: 1.66 | G15: 0.83 | H15: 2.773445097 | I15: 1.16 | J15: 1.61 | K15: 2.58 | M15: 13 | N15: 0.60 | O15: 7.65 | P15: 3.40 | Q15: 5.87 | R15: 2.75 | S15: 3.52 | T15: 4.58 | U15: =U14+$U$25 -> 1.2 | V15: =$V$13*U15 -> 7.05 | W15: 3.98 | Y15: 13 | Z15: 0.60 | AA15: 0.40 | AB15: =(#REF!/#REF!)*Z15 ->  | AC15: =(#REF!/#REF!)*AA15 ->  | AG15: 13 | AH15: 0.60 | AI15: 0.40 | AJ15: =(#REF!/#REF!)*'Oculto MC'!AH15 ->  | AK15: =AI15*(#REF!/#REF!) ->  | AL15: =$AJ$23+((#REF!/#REF!)*'Oculto MC'!AJ15) ->  | AM15: 12.00 | AO15: 13 | AP15: 0.60 | AQ15: 0.40 | AR15: 48.00 | AS15: 32.00 | AT15: 40.00 | AU15: 64.00 | AV15: 64.00 | AX15: 13 | AY15: 0.60 | AZ15: 0.40 | BA15: =('SustPerf MC'!$B$7/'SustPerf MC'!$C$7)*'Oculto MC'!AY15 -> 3.60 | BB15: =('SustPerf MC'!$B$7/'SustPerf MC'!$E$7)*'Oculto MC'!AZ15 -> 0.96 | BC15: 3.60 | BD15: 2.40 | BE15: 3.60 | BF15: 2.4 | BG15: 2.4
A16: 14 | B16: 1.30 | C16: 2.70 | D16: 1.46 | E16: 1.386722549 | F16: 1.80 | G16: 0.90 | H16: 2.773445097 | I16: 1.24 | J16: 1.72 | K16: 2.49 | M16: 14 | N16: 0.65 | O16: 8.28 | P16: 2.97 | Q16: 5.87 | R16: 2.98 | S16: 3.82 | T16: 4.58 | U16: 1.3 | V16: 7.63 | W16: 3.77 | Y16: 14 | Z16: 0.65 | AA16: 0.35 | AB16: =(#REF!/#REF!)*Z16 ->  | AC16: =(#REF!/#REF!)*AA16 ->  | AG16: 14 | AH16: 0.65 | AI16: 0.35 | AJ16: =(#REF!/#REF!)*'Oculto MC'!AH16 ->  | AK16: =AI16*(#REF!/#REF!) ->  | AL16: =$AJ$23+((#REF!/#REF!)*'Oculto MC'!AJ16) ->  | AM16: 13.00 | AO16: 14 | AP16: 0.65 | AQ16: 0.35 | AR16: 52.00 | AS16: 28.00 | AT16: 40.00 | AU16: 66.00 | AV16: 66.00 | AX16: 14 | AY16: 0.65 | AZ16: 0.35 | BA16: =('SustPerf MC'!$B$7/'SustPerf MC'!$C$7)*'Oculto MC'!AY16 -> 3.90 | BB16: =('SustPerf MC'!$B$7/'SustPerf MC'!$E$7)*'Oculto MC'!AZ16 -> 0.84 | BC16: 3.90 | BD16: 2.10 | BE16: 3.90 | BF16: 2.1 | BG16: 2.1
A17: 15 | B17: 1.40 | C17: 2.91 | D17: 1.25 | E17: 1.386722549 | F17: 1.94 | G17: 0.97 | H17: 2.773445097 | I17: 1.32 | J17: 1.83 | K17: 2.41 | M17: 15 | N17: 0.70 | O17: 8.92 | P17: 2.55 | Q17: 5.87 | R17: 3.21 | S17: 4.11 | T17: 4.58 | U17: 1.4 | V17: 8.22 | W17: 3.61 | Y17: 15 | Z17: 0.70 | AA17: 0.30 | AB17: =(#REF!/#REF!)*Z17 ->  | AC17: =(#REF!/#REF!)*AA17 ->  | AG17: 15 | AH17: 0.70 | AI17: 0.30 | AJ17: =(#REF!/#REF!)*'Oculto MC'!AH17 ->  | AK17: =AI17*(#REF!/#REF!) ->  | AL17: =$AJ$23+((#REF!/#REF!)*'Oculto MC'!AJ17) ->  | AM17: 14.00 | AO17: 15 | AP17: 0.70 | AQ17: 0.30 | AR17: 56.00 | AS17: 24.00 | AT17: 40.00 | AU17: 68.00 | AV17: 68.00 | AX17: 15 | AY17: 0.70 | AZ17: 0.30 | BA17: =('SustPerf MC'!$B$7/'SustPerf MC'!$C$7)*'Oculto MC'!AY17 -> 4.20 | BB17: =('SustPerf MC'!$B$7/'SustPerf MC'!$E$7)*'Oculto MC'!AZ17 -> 0.72 | BC17: 4.20 | BD17: 1.80 | BE17: 4.20 | BF17: 1.8 | BG17: 1.8
A18: 16 | B18: 1.50 | C18: 3.12 | D18: 1.04 | E18: 1.386722549 | F18: 2.08 | G18: 1.04 | H18: 2.773445097 | I18: 1.4 | J18: 1.94 | K18: 2.34 | M18: 16 | N18: 0.75 | O18: 9.56 | P18: 2.12 | Q18: 5.87 | R18: 3.44 | S18: 4.40 | T18: 4.58 | U18: 1.5 | V18: 8.81 | W18: 3.47 | Y18: 16 | Z18: 0.75 | AA18: 0.25 | AB18: =(#REF!/#REF!)*Z18 ->  | AC18: =(#REF!/#REF!)*AA18 ->  | AG18: 16 | AH18: 0.75 | AI18: 0.25 | AJ18: =(#REF!/#REF!)*'Oculto MC'!AH18 ->  | AK18: =AI18*(#REF!/#REF!) ->  | AL18: =$AJ$23+((#REF!/#REF!)*'Oculto MC'!AJ18) ->  | AM18: 15.00 | AO18: 16 | AP18: 0.75 | AQ18: 0.25 | AR18: 60.00 | AS18: 20.00 | AT18: 40.00 | AU18: 70.00 | AV18: 70.00 | AX18: 16 | AY18: 0.75 | AZ18: 0.25 | BA18: =('SustPerf MC'!$B$7/'SustPerf MC'!$C$7)*'Oculto MC'!AY18 -> 4.50 | BB18: =('SustPerf MC'!$B$7/'SustPerf MC'!$E$7)*'Oculto MC'!AZ18 -> 0.60 | BC18: 4.50 | BD18: 1.50 | BE18: 4.50 | BF18: 1.5 | BG18: 1.5
A19: 17 | B19: 1.60 | C19: 3.33 | D19: 0.83 | E19: 1.386722549 | F19: 2.22 | G19: 1.11 | H19: 2.773445097 | I19: 1.48 | J19: 2.05 | K19: 2.28 | M19: 17 | N19: 0.80 | O19: 10.20 | P19: 1.70 | Q19: 5.87 | R19: 3.67 | S19: 4.70 | T19: 4.58 | U19: 1.6 | V19: 9.40 | W19: 3.35 | Y19: 17 | Z19: 0.80 | AA19: 0.20 | AB19: =(#REF!/#REF!)*Z19 ->  | AC19: =(#REF!/#REF!)*AA19 ->  | AG19: 17 | AH19: 0.80 | AI19: 0.20 | AJ19: =(#REF!/#REF!)*'Oculto MC'!AH19 ->  | AK19: =AI19*(#REF!/#REF!) ->  | AL19: =$AJ$23+((#REF!/#REF!)*'Oculto MC'!AJ19) ->  | AM19: 16.00 | AO19: 17 | AP19: 0.80 | AQ19: 0.20 | AR19: 64.00 | AS19: 16.00 | AT19: 40.00 | AU19: 72.00 | AV19: 72.00 | AX19: 17 | AY19: 0.80 | AZ19: 0.20 | BA19: =('SustPerf MC'!$B$7/'SustPerf MC'!$C$7)*'Oculto MC'!AY19 -> 4.80 | BB19: =('SustPerf MC'!$B$7/'SustPerf MC'!$E$7)*'Oculto MC'!AZ19 -> 0.48 | BC19: 4.80 | BD19: 1.20 | BE19: 4.80 | BF19: 1.2 | BG19: 1.2
A20: 18 | B20: 1.70 | C20: 3.54 | D20: 0.62 | E20: 1.386722549 | F20: 2.36 | G20: 1.18 | H20: 2.773445097 | I20: 1.56 | J20: 2.16 | K20: 2.22 | M20: 18 | N20: 0.85 | O20: 10.83 | P20: 1.27 | Q20: 5.87 | R20: 3.89 | S20: 4.99 | T20: 4.58 | U20: 1.7 | V20: 9.98 | W20: 3.25 | Y20: 18 | Z20: 0.85 | AA20: 0.15 | AB20: =(#REF!/#REF!)*Z20 ->  | AC20: =(#REF!/#REF!)*AA20 ->  | AG20: 18 | AH20: 0.85 | AI20: 0.15 | AJ20: =(#REF!/#REF!)*'Oculto MC'!AH20 ->  | AK20: =AI20*(#REF!/#REF!) ->  | AL20: =$AJ$23+((#REF!/#REF!)*'Oculto MC'!AJ20) ->  | AM20: 17.00 | AO20: 18 | AP20: 0.85 | AQ20: 0.15 | AR20: 68.00 | AS20: 12.00 | AT20: 40.00 | AU20: 74.00 | AV20: 74.00 | AX20: 18 | AY20: 0.85 | AZ20: 0.15 | BA20: =('SustPerf MC'!$B$7/'SustPerf MC'!$C$7)*'Oculto MC'!AY20 -> 5.10 | BB20: =('SustPerf MC'!$B$7/'SustPerf MC'!$E$7)*'Oculto MC'!AZ20 -> 0.36 | BC20: 5.10 | BD20: 0.90 | BE20: 5.10 | BF20: 0.9 | BG20: 0.9
A21: 19 | B21: 1.80 | C21: 3.74 | D21: 0.42 | E21: 1.386722549 | F21: 2.50 | G21: 1.25 | H21: 2.773445097 | I21: 1.64 | J21: 2.27 | K21: 2.17 | M21: 19 | N21: 0.90 | O21: 11.47 | P21: 0.85 | Q21: 5.87 | R21: 4.12 | S21: 5.29 | T21: 4.58 | U21: 1.8 | V21: 10.57 | W21: 3.17 | Y21: 19 | Z21: 0.90 | AA21: 0.10 | AB21: =(#REF!/#REF!)*Z21 ->  | AC21: =(#REF!/#REF!)*AA21 ->  | AG21: 19 | AH21: 0.90 | AI21: 0.10 | AJ21: =(#REF!/#REF!)*'Oculto MC'!AH21 ->  | AK21: =AI21*(#REF!/#REF!) ->  | AL21: =$AJ$23+((#REF!/#REF!)*'Oculto MC'!AJ21) ->  | AM21: 18.00 | AO21: 19 | AP21: 0.90 | AQ21: 0.10 | AR21: 72.00 | AS21: 8.00 | AT21: 40.00 | AU21: 76.00 | AV21: 76.00 | AX21: 19 | AY21: 0.90 | AZ21: 0.10 | BA21: =('SustPerf MC'!$B$7/'SustPerf MC'!$C$7)*'Oculto MC'!AY21 -> 5.40 | BB21: =('SustPerf MC'!$B$7/'SustPerf MC'!$E$7)*'Oculto MC'!AZ21 -> 0.24 | BC21: 5.40 | BD21: 0.60 | BE21: 5.40 | BF21: 0.6 | BG21: 0.6
A22: 20 | B22: 1.90 | C22: 3.95 | D22: 0.21 | E22: 1.386722549 | F22: 2.63 | G22: 1.32 | H22: 2.773445097 | I22: 1.72 | J22: 2.39 | K22: 2.11 | M22: 20 | N22: 0.95 | O22: 12.11 | P22: 0.42 | Q22: 5.87 | R22: 4.35 | S22: 5.58 | T22: 4.58 | U22: 1.9 | V22: 11.16 | W22: 3.09 | Y22: 20 | Z22: 0.95 | AA22: 0.05 | AB22: =(#REF!/#REF!)*Z22 ->  | AC22: =(#REF!/#REF!)*AA22 ->  | AG22: 20 | AH22: 0.95 | AI22: 0.05 | AJ22: =(#REF!/#REF!)*'Oculto MC'!AH22 ->  | AK22: =AI22*(#REF!/#REF!) ->  | AL22: =$AJ$23+((#REF!/#REF!)*'Oculto MC'!AJ22) ->  | AM22: 19.00 | AO22: 20 | AP22: 0.95 | AQ22: 0.05 | AR22: 76.00 | AS22: 4.00 | AT22: 40.00 | AU22: 78.00 | AV22: 78.00 | AX22: 20 | AY22: 0.95 | AZ22: 0.05 | BA22: =('SustPerf MC'!$B$7/'SustPerf MC'!$C$7)*'Oculto MC'!AY22 -> 5.70 | BB22: =('SustPerf MC'!$B$7/'SustPerf MC'!$E$7)*'Oculto MC'!AZ22 -> 0.12 | BC22: 5.70 | BD22: 0.30 | BE22: 5.70 | BF22: 0.3 | BG22: 0.3
A23: 21 | B23: 2.00 | C23: 4.16 | D23: 0 | E23: 1.386722549 | F23: 2.77 | G23: 1.39 | H23: 2.773445097 | I23: 1.8 | J23: 2.50 | K23: 2.07 | M23: 21 | N23: 1.00 | O23: 12.75 | P23: 0 | Q23: 5.87 | R23: 4.58 | S23: 5.87 | T23: 4.58 | U23: 2 | V23: 11.75 | W23: 3.03 | Y23: 21 | Z23: 1.00 | AA23: 0 | AB23: =(#REF!/#REF!)*Z23 ->  | AC23: =(#REF!/#REF!)*AA23 ->  | AG23: 21 | AH23: 1.00 | AI23: 0 | AJ23: =(#REF!/#REF!)*'Oculto MC'!AH23 ->  | AK23: =AI23*(#REF!/#REF!) ->  | AL23: =$AJ$23+((#REF!/#REF!)*'Oculto MC'!AJ23) ->  | AM23: 20.00 | AO23: 21 | AP23: 1.00 | AQ23: 0 | AR23: 80.00 | AS23: 0 | AT23: 40.00 | AU23: 80.00 | AV23: 80.00 | AX23: 21 | AY23: 1.00 | AZ23: 0 | BA23: =('SustPerf MC'!$B$7/'SustPerf MC'!$C$7)*'Oculto MC'!AY23 -> 6.00 | BB23: =('SustPerf MC'!$B$7/'SustPerf MC'!$E$7)*'Oculto MC'!AZ23 -> 0 | BC23: 6.00 | BD23: 0 | BE23: 6.00 | BF23: 0 | BG23: 0
E25: x1 | F25: x2 | G25: C | O25: m | P25: ='CES MC'!B7 -> 127.46 | Q25: k | U25: =1/10 -> 0.1 | AQ25: m | AR25: ='Leontief MC'!B7 -> 72 | AY25: X1 | AZ25: =BA23 -> 6.00
E26: ='Cobb-Douglas MC'!D20 -> 1 | F26: ='Cobb-Douglas MC'!F20 -> 2 | O26: p1 | P26: ='CES MC'!C7 -> 10 | Q26: =(P28-Q28)*(P29-Q30) -> 10.00 | R26: x1x2 | S26: bx1 | T26: ax2 | U26: ab | AQ26: p1 | AR26: ='Leontief MC'!C7 -> 0.9 | AY26: X2 | AZ26: =BB3 -> 2.40
E27: =((C45)*((A45/B45)^(1/(C45+E45)))*((B32/C45)^(C45/(C45+E45)))*((D32/E45)^(E45/(C45+E45))))/B32 -> 1.387 | F27: =((E45)*((A45/B45)^(1/(C45+E45)))*((B32/C45)^(C45/(C45+E45)))*((D32/E45)^(E45/(C45+E45))))/D32 -> 2.773 | G27: =E27*B32+E32*D32 -> 20.801 | O27: p2 | P27: ='CES MC'!E7 -> 15 | Q27: a | AQ27: p2 | AR27: ='Leontief MC'!E7 -> 0.9 | AY27: K | AZ27: ='SustPerf MC'!B20 -> 6
F28: =B45*(E27^(E26))*(F27^(F26)) -> 32 | O28: x1* | P28: =('CES MC'!E7+(SQRT((P26*P27)/'CES MC'!B20)*'CES MC'!E20))/SQRT((P26*P27)/'CES MC'!B20) -> 5.87 | Q28: ='CES MC'!E20 -> 2 | AQ28: x1 | AR28: =AR25/(AR27+AR26) -> 40 | AY28: P1 | AZ28: ='SustPerf MC'!$C$7 -> 2
O29: x2* | P29: =('CES MC'!C7+(SQRT((P26*P27)/'CES MC'!B20)*'CES MC'!F20))/SQRT((P26*P27)/'CES MC'!B20) -> 4.58 | Q29: b | AQ29: x2 | AR29: =AR28 -> 40 | AY29: P2 | AZ29: ='SustPerf MC'!$E$7 -> 5
A30: GASTO | O30: lamda | P30: =SQRT((P26*P27)/'CES MC'!B20) -> 3.87 | Q30: ='CES MC'!F20 -> 2 | AY30: X1* | AZ30: =IF(AZ25>=AZ26,AZ25,"0") -> 6
A31: e | B31: w1 | C31: q1 | D31: w2 | E31: q2 | AY31: X2* | AZ31: =IF(AZ26>=AZ25,AZ26,"0") -> 0
A32: =B32*C32+D32*E32 -> 20.8 | B32: ='Cobb-Douglas MC'!C7 -> 5.0 | C32: =E27 -> 1.4 | D32: ='Cobb-Douglas MC'!E7 -> 5.0 | E32: =F27 -> 2.8
A33: Inserte los datos correspondientes
A35: PARÁMETROS DEL GASTO
A36: q2 | B36: b0 | C36: b1 | D36: q1
A37: =B37+C37*D37 -> 2.8 | B37: =A32/D32 -> 4.2 | C37: =-B32/D32 -> (1.0) | D37: =C32 -> 1.4
A39: Máxima cantidad de q1 | C39: =A32/B32 -> 4.2
A40: Máxima cantidad de q2 | C40: =A32/D32 -> 4.2
A41: Precio relativo (<0) | C41: =-B32/D32 -> (1.0)
A43: PARÁMETROS DE LA ISOCUANTA (FUNCIÓN COBB-DOUGLAS)
A44: y | B44: A | C44: a | D44: q1* | E44: b | F44: q2*
A45: ='Cobb-Douglas MC'!B20 -> 32.0 | B45: ='Cobb-Douglas MC'!C20 -> 3.0 | C45: ='Cobb-Douglas MC'!D20 -> 1.0 | D45: =C32 -> 1.4 | E45: ='Cobb-Douglas MC'!F20 -> 2.0 | F45: =E32 -> 2.8

Sheet Cobb-Douglas MC (hidden)
A1: MINIMIZACIÓN DE COSTOS
A3: FUNCIÓN DE PRODUCCIÓN COBB-DOUGLAS
B5: GASTO
B6: c | C6: w1 | D6: q1 | E6: w2 | F6: q2
B7: ='Oculto MC'!G27 -> 20.8 | C7: 5.0 | D7: ='Oculto MC'!E27 -> 1.4 | E7: 5.0 | F7: ='Oculto MC'!F27 -> 2.8
B8: Inserte los datos correspondientes
B10: PARÁMETROS DEL GASTO
B11: q2 | C11: b0 | D11: b1 | E11: q1
B12: =C12+(D12*E12) -> 2.8 | C12: =B7/E7 -> 4.2 | D12: =C7/E7*-1 -> (1.0) | E12: =D7 -> 1.4
B14: Máxima cantidad de q1 | D14: =B7/C7 -> 4.2
B15: Máxima cantidad de q2 | D15: =B7/E7 -> 4.2
B16: Precio relativo (<0) | D16: =(C7/E7)*(-1) -> (1.0)
B18: PARÁMETROS DE LA ISOCUANTA (FUNCIÓN COBB-DOUGLAS)
B19: y | C19: A | D19: a | E19: q1* | F19: b | G19: q2*
B20: 32.0 | C20: 3.0 | D20: 1.0 | E20: ='Oculto MC'!E27 -> 1.4 | F20: 2.0 | G20: ='Oculto MC'!F27 -> 2.8
B23: Títulos
B24: Resultados
B25: Insertar datos
B26: Valor de equilibrio
